bitfinex/quotes_BTCUSD_20250714
["timestamp","ask_amount","ask_price","bid_price","bid_amount"]
[1752483393080,0.20992832,122440.0,122430.0,0.4261656]
[1752483393292,0.20992832,122440.0,122430.0,0.73723952]
[1752483393498,0.19259487,122440.0,122430.0,0.55754508]
[1752483393665,0.19259487,122440.0,122430.0,0.55854508]
[1752483394028,0.19259487,122440.0,122430.0,0.55754508]
[1752483394269,0.19259487,122440.0,122430.0,0.55854508]
[1752483394448,0.19259487,122440.0,122430.0,0.56671294]
[1752483394625,0.19259487,122440.0,122430.0,0.57488087]
[1752483394830,0.19259487,122440.0,122430.0,0.56671301]
[1752483395040,0.19259487,122440.0,122430.0,0.57488087]
[1752483395668,0.19259487,122440.0,122430.0,0.56671301]
[1752483395865,0.19259487,122440.0,122430.0,0.57488087]
[1752483396092,0.19259487,122440.0,122430.0,0.56671301]
[1752483396305,0.19259487,122440.0,122430.0,0.57488087]
[1752483396508,0.19259487,122440.0,122430.0,0.74640731]
[1752483396727,0.20076213,122440.0,122430.0,0.75457504]
[1752483397250,0.20076213,122440.0,122430.0,0.73823952]
[1752483397540,0.20076213,122440.0,122430.0,0.74640731]
[1752483398038,0.20076213,122440.0,122430.0,0.73823952]
[1752483398598,0.20076213,122440.0,122430.0,0.74640731]
[1752483398918,0.18442728,122440.0,122430.0,0.76274257]
[1752483399115,0.03904136,122440.0,122430.0,0.7627421]
[1752483399325,0.0390413,122440.0,122430.0,0.7627421]
[1752483399728,0.0390413,122440.0,122430.0,0.75457464]
[1752483399945,0.01454085,122440.0,122430.0,0.75457464]
[1752483400215,0.01454085,122440.0,122430.0,0.84408921]
[1752483400418,0.02270764,122440.0,122430.0,0.84408921]
[1752483400627,0.02270758,122440.0,122430.0,0.84408921]
[1752483401156,0.02270758,122440.0,122430.0,0.80408921]
[1752483401359,0.01454085,122440.0,122430.0,0.80408921]
[1752483401562,0.02270758,122440.0,122430.0,0.80408921]
[1752483402541,0.01454085,122440.0,122430.0,0.80408921]
[1752483402990,0.19754027,122460.0,122450.0,0.23783121]
[1752483403204,0.04059683,122460.0,122450.0,0.90567235]
[1752483403408,0.19422022,122440.0,122430.0,0.01427694]
[1752483403586,0.19422022,122440.0,122430.0,0.13975694]
[1752483403825,0.19422022,122440.0,122430.0,0.13159626]
[1752483404234,0.19421982,122440.0,122430.0,0.04392328]
[1752483404446,0.20238681,122440.0,122430.0,0.39536499]
[1752483404648,0.19421982,122440.0,122430.0,0.51272431]
[1752483404829,0.01454085,122440.0,122430.0,0.76560491]
[1752483405300,0.01454085,122440.0,122430.0,0.7737725]
[1752483405510,0.01454085,122440.0,122430.0,0.79010749]
[1752483405658,0.18605282,122440.0,122430.0,0.7737725]
[1752483405870,0.19421961,122440.0,122430.0,0.76560498]
[1752483406036,0.17788616,122440.0,122430.0,0.77377251]
[1752483406266,0.16333197,122450.0,122440.0,0.18783865]
[1752483406491,0.19754066,122460.0,122440.0,0.18783865]
[1752483406492,0.19754066,122460.0,122440.0,0.71398747]
[1752483406675,0.22024737,122460.0,122450.0,0.31924171]
[1752483406880,0.22024684,122460.0,122450.0,0.34954171]
[1752483407439,0.22024744,122460.0,122450.0,0.0303]
[1752483407677,0.21208151,122460.0,122450.0,0.34954171]
[1752483407827,0.21208151,122460.0,122450.0,0.0303]
[1752483408036,0.21208151,122460.0,122450.0,0.0304]
[1752483408268,0.20591598,122460.0,122450.0,0.0304]
[1752483408876,0.20691598,122460.0,122450.0,0.0304]
[1752483409536,0.19875039,122460.0,122450.0,0.0304]
[1752483409765,0.17966489,122450.0,122440.0,0.46438882]
[1752483409948,0.19599735,122450.0,122440.0,0.27066711]
[1752483410327,0.19599735,122450.0,122440.0,0.14514711]
[1752483410580,0.19599735,122450.0,122440.0,0.27066711]
[1752483411329,0.18783122,122450.0,122440.0,0.11214711]
[1752483411534,0.17966489,122450.0,122440.0,0.23766711]
[1752483412142,0.17966489,122450.0,122440.0,0.11214711]
[1752483412385,0.17966455,122450.0,122440.0,0.27633437]
[1752483412648,0.17966455,122450.0,122440.0,0.28450156]
[1752483412889,0.18783108,122450.0,122440.0,0.60374327]
[1752483413046,0.17966455,122450.0,122440.0,0.60374327]
[1752483413251,0.17966455,122450.0,122440.0,0.59557608]
[1752483413471,0.18783108,122450.0,122440.0,0.58740882]
[1752483413640,0.17966455,122450.0,122440.0,0.59557601]
[1752483413852,0.17966455,122450.0,122440.0,0.60374314]
[1752483414097,0.17966415,122450.0,122440.0,0.76708845]
[1752483414273,0.18783048,122450.0,122440.0,0.76708845]
[1752483414452,0.18783048,122450.0,122440.0,0.77525551]
[1752483414651,0.17966415,122450.0,122440.0,0.6579025]
[1752483414943,0.1875846,122460.0,122450.0,0.00816659]
[1752483415112,0.20391598,122460.0,122450.0,0.16690653]
[1752483415286,0.21208191,122460.0,122450.0,0.15874]
[1752483415487,0.21208191,122460.0,122450.0,0.16690659]
[1752483415687,0.21208191,122460.0,122450.0,0.0333]
[1752483416038,0.21208191,122460.0,122450.0,0.16690653]
[1752483416250,0.21308191,122460.0,122450.0,0.33840496]
[1752483416387,0.21308191,122460.0,122450.0,0.15874]
[1752483416806,0.21308191,122460.0,122450.0,0.17507299]
[1752483417170,0.21308191,122460.0,122450.0,0.16690653]
[1752483417403,0.20335679,122460.0,122450.0,0.17507299]
[1752483417611,0.20335679,122460.0,122450.0,0.48614824]
[1752483417809,0.20335679,122460.0,122450.0,0.16690659]
[1752483418021,0.20335679,122460.0,122450.0,0.17507312]
[1752483418342,0.20335679,122460.0,122450.0,0.16690659]
[1752483418782,0.20435679,122460.0,122450.0,0.17507312]
[1752483418986,0.1961912,122460.0,122450.0,0.15874]
[1752483419204,0.18802541,122460.0,122450.0,0.15874]
[1752483421337,0.1974504,122460.0,122450.0,0.15874]
[1752483422825,0.1974504,122460.0,122450.0,0.17499312]
[1752483423164,0.1974504,122460.0,122450.0,0.15866]
[1752483423816,0.1974504,122460.0,122450.0,0.16682659]
[1752483423966,0.21378152,122460.0,122450.0,0.65756667]
[1752483424170,0.21378152,122460.0,122450.0,0.52404027]
[1752483424398,0.21378152,122460.0,122450.0,0.49419483]
[1752483424594,0.21378152,122460.0,122450.0,0.4860283]
[1752483424795,0.22194745,122460.0,122450.0,0.65752666]
[1752483425498,0.22194745,122460.0,122450.0,0.66569312]
[1752483426035,0.22194745,122460.0,122450.0,0.49419483]
[1752483426246,0.22194745,122460.0,122450.0,0.50236129]
[1752483426466,0.22194745,122460.0,122450.0,0.18311958]
[1752483426609,0.22194745,122460.0,122450.0,0.17495312]
[1752483426813,0.21378192,122460.0,122450.0,0.16678659]
[1752483427402,0.21378192,122460.0,122450.0,0.17495298]
[1752483427610,0.21378192,122460.0,122450.0,0.17495305]
[1752483427820,0.21378192,122460.0,122450.0,0.16678659]
[1752483428303,0.21378192,122460.0,122450.0,0.17495312]
[1752483428451,0.21378192,122460.0,122450.0,0.33828509]
[1752483428653,0.21378192,122460.0,122450.0,0.34645155]
[1752483428864,0.21378192,122460.0,122450.0,0.35461794]
[1752483429154,0.21378192,122460.0,122450.0,0.16678659]
[1752483429367,0.19924107,122460.0,122450.0,0.17495312]
[1752483429580,0.21378192,122460.0,122450.0,0.34645148]
[1752483429744,0.21378192,122460.0,122450.0,0.33828509]
[1752483429997,0.21378192,122460.0,122450.0,0.34645155]
[1752483430413,0.21378192,122460.0,122450.0,0.35461794]
[1752483430900,0.21378192,122460.0,122450.0,0.36278427]
[1752483431291,0.21378192,122460.0,122450.0,0.23746427]
[1752483431427,0.21378192,122460.0,122450.0,0.36282427]
[1752483431983,0.21378192,122460.0,122450.0,0.34649155]
[1752483432231,0.21378192,122460.0,122450.0,0.33832509]
[1752483432848,0.21378192,122460.0,122450.0,0.34649155]
[1752483433303,0.21378192,122460.0,122450.0,0.35465788]
[1752483433539,0.21378192,122460.0,122450.0,0.36282414]
[1752483433797,0.21378192,122460.0,122450.0,0.35465788]
[1752483434020,0.21378192,122460.0,122450.0,0.35465794]
[1752483434242,0.21378192,122460.0,122450.0,0.36282427]
[1752483434453,0.21378192,122460.0,122450.0,0.34649135]
[1752483434659,0.21378192,122460.0,122450.0,0.35465768]
[1752483435602,0.21378192,122460.0,122450.0,0.36282394]
[1752483435909,0.03243117,122460.0,122450.0,0.58690565]
[1752483436114,0.04876243,122460.0,122450.0,0.71214525]
[1752483436360,0.0405967,122460.0,122450.0,0.71214525]
[1752483436594,0.05692815,122460.0,122450.0,0.71214525]
[1752483436817,0.06509461,122460.0,122450.0,0.70397912]
[1752483437017,0.06509461,122460.0,122450.0,0.71214531]
[1752483437636,0.06479461,122460.0,122450.0,0.71214531]
[1752483438287,0.06479461,122460.0,122450.0,0.66825209]
[1752483438288,0.02396584,122460.0,122450.0,0.66825209]
[1752483438666,0.02396584,122460.0,122450.0,0.79341209]
[1752483438906,0.02296584,122460.0,122450.0,0.79341209]
[1752483439114,0.01632858,122480.0,122470.0,0.21192716]
[1752483439322,0.01632858,122480.0,122470.0,0.37565202]
[1752483439323,0.21049011,122480.0,122470.0,0.37565202]
[1752483439523,0.02449271,122480.0,122470.0,0.37565202]
[1752483439725,0.04204,122480.0,122470.0,0.38381681]
[1752483439934,0.00938283,122480.0,122470.0,0.78440563]
[1752483440284,0.01632726,122490.0,122480.0,0.05779317]
[1752483440490,0.02449112,122490.0,122480.0,0.25934926]
[1752483440650,0.19414674,122490.0,122480.0,0.24302094]
[1752483440852,0.2023106,122490.0,122480.0,0.22108527]
[1752483441260,0.21047453,122490.0,122480.0,0.22924953]
[1752483441711,0.21047453,122490.0,122480.0,0.22108527]
[1752483441927,0.21047453,122490.0,122480.0,0.21292094]
[1752483442126,0.202311,122490.0,122480.0,0.21292101]
[1752483442973,0.19414727,122490.0,122480.0,0.20475655]
[1752483443190,0.2035245,122490.0,122480.0,0.21292108]
[1752483443404,0.2035245,122490.0,122480.0,0.21392108]
[1752483443767,0.2035245,122490.0,122480.0,0.04246459]
[1752483443914,0.19536064,122490.0,122480.0,0.04246459]
[1752483444122,0.19536064,122490.0,122480.0,0.0343]
[1752483444358,0.19536064,122490.0,122480.0,0.04246459]
[1752483444884,0.19536064,122490.0,122480.0,0.0343]
[1752483445427,0.19536064,122490.0,122480.0,0.05062912]
[1752483445631,0.19536064,122490.0,122480.0,0.04246459]
[1752483445822,0.19536064,122490.0,122480.0,0.05062912]
[1752483446098,0.19536064,122490.0,122480.0,0.04246459]
[1752483447060,0.18719671,122490.0,122480.0,0.0343]
[1752483447529,0.18719671,122490.0,122480.0,0.19759196]
[1752483447666,0.18719671,122490.0,122480.0,0.20575642]
[1752483448078,0.19536057,122490.0,122480.0,0.21392081]
[1752483448283,0.19536057,122490.0,122480.0,0.22208514]
[1752483448482,0.21168816,122490.0,122480.0,0.21392081]
[1752483448885,0.2035245,122490.0,122480.0,0.21392081]
[1752483449147,0.19536064,122490.0,122480.0,0.20575642]
[1752483449674,0.19536064,122490.0,122480.0,0.21392081]
[1752483450078,0.19536064,122490.0,122480.0,0.22208514]
[1752483450493,0.03208141,122490.0,122480.0,0.22208514]
[1752483450837,0.048409,122490.0,122480.0,0.26921346]
[1752483450984,0.05657293,122490.0,122480.0,0.58845517]
[1752483451347,0.05657293,122490.0,122480.0,0.26921346]
[1752483451502,0.22801509,122490.0,122480.0,0.58845524]
[1752483451724,0.21985176,122490.0,122480.0,0.58029111]
[1752483451919,0.21985176,122490.0,122480.0,0.58845524]
[1752483452087,0.21985176,122490.0,122480.0,0.58029111]
[1752483452088,0.21168783,122490.0,122480.0,0.58029111]
[1752483452274,0.21168783,122490.0,122480.0,0.57212685]
[1752483452486,0.21168783,122490.0,122480.0,0.58029111]
[1752483452946,0.21168783,122490.0,122480.0,0.25288514]
[1752483453812,0.0484092,122490.0,122480.0,0.59025517]
[1752483454028,0.05657313,122490.0,122480.0,0.27101346]
[1752483454248,0.0484092,122490.0,122480.0,0.27101346]
[1752483455146,0.05657313,122490.0,122480.0,0.59025517]
[1752483455869,0.04840913,122490.0,122480.0,0.59025517]
[1752483456275,0.05657299,122490.0,122480.0,0.59025517]
[1752483456905,0.04840913,122490.0,122480.0,0.59025517]
[1752483457527,0.04840913,122490.0,122480.0,0.27101346]
[1752483457940,0.04024494,122490.0,122480.0,0.27101346]
[1752483458151,0.04840853,122490.0,122480.0,0.27101346]
[1752483458348,0.05657226,122490.0,122480.0,0.27101346]
[1752483458757,0.04024494,122490.0,122480.0,0.27101346]
[1752483458960,0.0402448,122490.0,122480.0,0.27101346]
[1752483459172,0.0402448,122490.0,122480.0,0.59025517]
[1752483459373,0.04840833,122490.0,122480.0,0.59025517]
[1752483459577,0.05657192,122490.0,122480.0,0.59025517]
[1752483459777,0.04840833,122490.0,122480.0,0.27101346]
[1752483459985,0.02391808,122490.0,122480.0,0.67160228]
[1752483460193,0.1951174,122520.0,122510.0,0.17141456]
[1752483460194,0.0315,122520.0,122510.0,0.17141456]
[1752483460431,0.02448452,122520.0,122510.0,0.47680161]
[1752483460653,0.03264638,122520.0,122510.0,0.48496374]
[1752483460851,0.04718716,122520.0,122510.0,0.47680167]
[1752483461051,0.03264631,122520.0,122510.0,0.4849638]
[1752483461254,0.04080824,122520.0,122510.0,0.4849638]
[1752483461451,0.04131853,122520.0,122510.0,0.4849638]
[1752483461663,0.06618385,122520.0,122510.0,0.4849638]
[1752483461872,0.0807247,122520.0,122510.0,0.4849638]
[1752483462224,0.09003993,122520.0,122510.0,0.4849638]
[1752483462467,0.09003993,122520.0,122510.0,0.47680167]
[1752483462748,0.09403993,122520.0,122510.0,0.47680167]
[1752483462964,0.087878,122520.0,122510.0,0.4849638]
[1752483463164,0.0878786,122520.0,122510.0,0.46863948]
[1752483463373,0.25111725,122520.0,122510.0,0.47680181]
[1752483463580,0.24911725,122520.0,122510.0,0.47680181]
[1752483463801,0.20277517,122520.0,122510.0,0.46047709]
[1752483464008,0.19561351,122520.0,122510.0,0.46863955]
[1752483464241,0.19661351,122520.0,122510.0,0.46863955]
[1752483464571,0.19561351,122520.0,122510.0,0.46863955]
[1752483465152,0.19461351,122520.0,122510.0,0.47680194]
[1752483465547,0.19461351,122520.0,122510.0,0.48496427]
[1752483465768,0.19461351,122520.0,122510.0,0.48496394]
[1752483466409,0.20386097,122520.0,122510.0,0.48496394]
[1752483466622,0.20386097,122520.0,122510.0,0.48596394]
[1752483466879,0.20386097,122520.0,122510.0,0.47780168]
[1752483467066,0.20386097,122520.0,122510.0,0.46147696]
[1752483467302,0.20386097,122520.0,122510.0,0.46963935]
[1752483468492,0.20386097,122520.0,122510.0,0.46147696]
[1752483469564,0.20386097,122520.0,122510.0,0.46963935]
[1752483469930,0.23526097,122520.0,122510.0,0.001]
[1752483470151,0.8970826,122520.0,122510.0,0.12596]
[1752483470403,0.70280089,122520.0,122510.0,0.001]
[1752483470607,0.57784089,122520.0,122510.0,0.001]
[1752483471044,0.57784089,122520.0,122500.0,0.42066]
[1752483471045,0.02270324,122510.0,122500.0,0.42066]
[1752483471249,0.3901692,122510.0,122500.0,0.42066]
[1752483471454,0.39833173,122510.0,122500.0,0.2957]
[1752483471660,0.39833173,122510.0,122500.0,0.42066]
[1752483471990,0.39833119,122510.0,122500.0,0.12496]
[1752483472216,0.39833119,122510.0,122490.0,0.22672587]
[1752483472422,0.40749365,122510.0,122500.0,0.12496]
[1752483473208,0.40033113,122510.0,122500.0,0.12496]
[1752483473632,0.39933106,122510.0,122500.0,0.12496]
[1752483473991,0.3911688,122510.0,122500.0,0.12496]
[1752483474398,0.07292709,122510.0,122500.0,0.12496]
[1752483474620,0.04844085,122510.0,122500.0,0.17959169]
[1752483474821,0.05660284,122510.0,122500.0,0.17142856]
[1752483475023,0.05660284,122510.0,122500.0,0.30451175]
[1752483475228,0.06476497,122510.0,122500.0,0.30451175]
[1752483475482,0.07292716,122510.0,122500.0,0.13308326]
[1752483475650,0.07292716,122510.0,122500.0,0.12492]
[1752483476300,0.06476497,122510.0,122500.0,0.13308326]
[1752483477006,0.05660284,122510.0,122500.0,0.14124645]
[1752483477175,0.06476497,122510.0,122500.0,0.13308326]
[1752483477503,0.07292723,122510.0,122500.0,0.12492]
[1752483477796,0.08108962,122510.0,122500.0,0.12492]
[1752483478037,0.40033133,122510.0,122500.0,0.12492]
[1752483478243,0.39216894,122510.0,122500.0,0.12492]
[1752483478640,0.38400668,122510.0,122500.0,0.12492]
[1752483478842,0.06476497,122510.0,122500.0,0.12492]
[1752483478979,0.05660284,122510.0,122500.0,0.13308326]
[1752483479179,0.06476497,122510.0,122500.0,0.12492]
[1752483480098,0.05660284,122510.0,122500.0,0.12492]
[1752483480355,0.06476497,122510.0,122500.0,0.12492]
[1752483480596,0.5391008,122510.0,122490.0,0.0308]
[1752483480837,0.38977101,122500.0,122490.0,0.12492]
[1752483481046,0.0306,122490.0,122480.0,0.14623169]
[1752483481230,0.56004786,122490.0,122480.0,0.14623169]
[1752483481438,0.01632818,122480.0,122470.0,0.45309644]
[1752483481656,0.36616983,122480.0,122470.0,0.4612617]
[1752483481869,0.37433409,122480.0,122470.0,0.27932569]
[1752483482094,0.03776399,122480.0,122470.0,0.44263098]
[1752483482273,0.04592812,122480.0,122470.0,0.2711605]
[1752483482476,0.03776399,122480.0,122470.0,0.45079611]
[1752483482686,0.00716399,122480.0,122470.0,0.46712616]
[1752483482950,0.40563316,122490.0,122470.0,0.46720925]
[1752483483162,0.01454085,122480.0,122470.0,0.49804885]
[1752483483405,0.01454085,122480.0,122470.0,0.35676761]
[1752483483626,0.02270484,122480.0,122470.0,0.47356268]
[1752483483839,0.01454085,122480.0,122470.0,0.22684882]
[1752483484059,0.02270484,122480.0,122470.0,0.34364389]
[1752483484226,0.02270484,122480.0,122470.0,0.33847876]
[1752483484466,0.02270484,122480.0,122470.0,0.33032245]
[1752483484673,0.02270484,122480.0,122470.0,0.33548744]
[1752483484872,0.02270484,122480.0,122470.0,0.20437099]
[1752483485185,0.02270484,122480.0,122470.0,0.32933099]
[1752483485393,0.01454085,122480.0,122470.0,0.33133933]
[1752483485693,0.01454085,122480.0,122470.0,0.31501809]
[1752483485962,0.01454085,122480.0,122470.0,0.32118295]
[1752483486161,0.01454085,122480.0,122470.0,0.3130265]
[1752483486339,0.01454085,122480.0,122470.0,0.31402657]
[1752483486514,0.01454085,122480.0,122470.0,0.18091012]
[1752483486717,0.01454085,122480.0,122470.0,0.31403498]
[1752483486920,0.01454085,122480.0,122470.0,0.27733095]
[1752483487126,0.01454085,122480.0,122470.0,0.15237061]
[1752483487337,0.01454085,122480.0,122470.0,0.2610074]
[1752483487538,0.01454085,122480.0,122470.0,0.22428804]
[1752483487866,0.01454085,122480.0,122470.0,0.22429448]
[1752483488152,0.01454085,122480.0,122470.0,0.21351903]
[1752483488403,0.01454085,122480.0,122470.0,0.34664402]
[1752483488604,0.01454085,122480.0,122470.0,0.33847896]
[1752483488809,0.01454085,122480.0,122470.0,0.35480895]
[1752483489020,0.01454085,122480.0,122470.0,0.3384856]
[1752483489222,0.01454085,122480.0,122470.0,0.34665053]
[1752483489507,0.01454085,122480.0,122470.0,0.33849211]
[1752483489746,0.01454085,122480.0,122470.0,0.21353808]
[1752483489964,0.01454085,122480.0,122470.0,0.68933979]
[1752483490181,0.02270418,122490.0,122480.0,0.00816459]
[1752483490400,0.01454085,122490.0,122480.0,0.61565826]
[1752483490656,0.06144259,122520.0,122490.0,0.18776895]
[1752483490888,0.03086504,122510.0,122490.0,0.62982116]
[1752483491150,0.03086504,122510.0,122500.0,0.12496]
[1752483491396,0.03086504,122510.0,122500.0,0.13312326]
[1752483491620,0.03086504,122510.0,122500.0,0.12496]
[1752483491840,0.0390273,122510.0,122490.0,0.62165783]
[1752483491978,0.0390273,122510.0,122500.0,0.12496]
[1752483492433,0.0410273,122510.0,122500.0,0.12496]
[1752483492628,0.03286504,122510.0,122500.0,0.13312326]
[1752483492862,0.03286504,122510.0,122500.0,0.12496]
[1752483493072,0.04918976,122510.0,122490.0,0.63673118]
[1752483493277,0.05018976,122510.0,122500.0,0.12496]
[1752483493559,0.04718976,122510.0,122500.0,0.12496]
[1752483493762,0.03902737,122510.0,122500.0,0.12496]
[1752483493976,0.0390273,122510.0,122500.0,0.12496]
[1752483494183,0.03086504,122510.0,122500.0,0.12496]
[1752483494397,0.07918976,122510.0,122500.0,0.12496]
[1752483494605,0.47918969,122510.0,122490.0,0.30051706]
[1752483494841,0.4710273,122510.0,122500.0,0.12496]
[1752483495275,0.47918969,122510.0,122500.0,0.12496]
[1752483495925,0.47918963,122510.0,122490.0,0.3252534]
[1752483496144,0.48735202,122510.0,122500.0,0.12496]
[1752483496327,0.47918963,122510.0,122500.0,0.12496]
[1752483496934,0.4710273,122510.0,122500.0,0.12496]
[1752483497768,0.46286504,122510.0,122500.0,0.12496]
[1752483497974,0.47102723,122510.0,122500.0,0.12496]
[1752483498570,0.47102723,122510.0,122490.0,0.33341706]
[1752483498778,0.47918956,122510.0,122500.0,0.12492]
[1752483499206,0.47102723,122510.0,122500.0,0.12492]
[1752483499526,0.46286504,122510.0,122500.0,0.12492]
[1752483499765,0.07102723,122510.0,122500.0,0.12492]
[1752483500005,0.06286504,122510.0,122500.0,0.12492]
[1752483501026,0.02270284,122510.0,122490.0,0.66898609]
[1752483501310,0.02270291,122510.0,122490.0,0.6526589]
[1752483501539,0.03086504,122510.0,122500.0,0.12492]
[1752483502207,0.06406504,122510.0,122500.0,0.12492]
[1752483502439,0.07222723,122510.0,122500.0,0.12492]
[1752483502674,0.08038949,122510.0,122500.0,0.12492]
[1752483502887,0.07222723,122510.0,122500.0,0.12492]
[1752483503333,0.3996312,122510.0,122490.0,0.11274711]
[1752483503576,0.43053393,122500.0,122490.0,0.001]
[1752483503814,0.43869719,122500.0,122490.0,0.001]
[1752483504039,0.60196249,122500.0,122490.0,0.12492]
[1752483504261,0.58563704,122500.0,122490.0,0.12492]
[1752483504479,0.58563691,122500.0,122490.0,0.12492]
[1752483504690,0.42237161,122500.0,122490.0,0.12492]
[1752483505376,0.43153487,122500.0,122490.0,0.12492]
[1752483505617,0.11229316,122500.0,122490.0,0.12492]
[1752483505836,0.43153487,122500.0,122490.0,0.12492]
[1752483506048,0.41520848,122500.0,122490.0,0.12492]
[1752483506277,0.42337167,122500.0,122490.0,0.12692]
[1752483506544,0.41420848,122500.0,122490.0,0.12492]
[1752483506773,0.42237167,122500.0,122490.0,0.12492]
[1752483507007,0.58563697,122500.0,122490.0,0.12492]
[1752483507501,0.43053493,122500.0,122490.0,0.12492]
[1752483508199,0.42237167,122500.0,122490.0,0.12492]
[1752483509191,0.59380023,122500.0,122490.0,0.12492]
[1752483509414,0.59480023,122500.0,122490.0,0.12492]
[1752483509627,0.01454085,122480.0,122470.0,0.37130191]
[1752483509848,0.01454085,122480.0,122470.0,0.59389934]
[1752483510934,0.01454085,122480.0,122470.0,0.58573421]
[1752483511142,0.01454085,122480.0,122470.0,0.6020642]
[1752483511350,0.01454085,122480.0,122470.0,0.58573421]
[1752483511620,0.01454085,122480.0,122470.0,0.6020644]
[1752483511832,0.01454085,122480.0,122470.0,0.59489934]
[1752483512270,0.01454085,122480.0,122470.0,0.41526529]
[1752483512486,0.01454085,122480.0,122470.0,0.43159574]
[1752483512695,0.01454085,122480.0,122470.0,0.43359574]
[1752483512949,0.01454085,122480.0,122470.0,0.44176087]
[1752483513365,0.01454085,122480.0,122470.0,0.46703304]
[1752483513570,0.01454085,122480.0,122470.0,0.45070285]
[1752483513752,0.01454085,122480.0,122470.0,0.45886798]
[1752483513953,0.01454085,122480.0,122470.0,0.45070285]
[1752483514090,0.01454085,122480.0,122470.0,0.45886798]
[1752483514290,0.01454085,122480.0,122470.0,0.15431237]
[1752483514569,0.01454085,122480.0,122470.0,0.27106711]
[1752483515483,0.01454085,122480.0,122470.0,0.45070279]
[1752483515704,0.01454085,122480.0,122470.0,0.45886785]
[1752483515919,0.01454085,122480.0,122470.0,0.47519777]
[1752483516121,0.01454085,122480.0,122470.0,0.46703284]
[1752483516471,0.01454085,122480.0,122470.0,0.47519777]
[1752483516712,0.01454085,122480.0,122470.0,0.45886785]
[1752483516886,0.01454085,122480.0,122470.0,0.46703284]
[1752483517022,0.01454085,122480.0,122470.0,0.45070279]
[1752483517225,0.01454085,122480.0,122470.0,0.45886785]
[1752483517837,0.01454085,122490.0,122470.0,0.78627449]
[1752483518043,0.01454085,122490.0,122470.0,0.77810956]
[1752483518253,0.01454085,122490.0,122470.0,0.78627455]
[1752483518452,0.01454085,122490.0,122470.0,0.79443948]
[1752483519112,0.02270424,122490.0,122470.0,0.78427455]
[1752483519358,0.01454085,122490.0,122470.0,0.7699445]
[1752483519632,0.01454085,122490.0,122470.0,0.77810956]
[1752483519833,0.01454085,122490.0,122470.0,0.78627455]
[1752483520071,0.00475152,122490.0,122470.0,0.78627455]
[1752483520277,0.40783076,122500.0,122470.0,0.78527455]
[1752483520704,0.40783076,122500.0,122470.0,0.47519777]
[1752483520884,0.40783076,122500.0,122470.0,0.79443948]
[1752483521294,0.39966763,122500.0,122470.0,0.79343908]
[1752483521493,0.39966763,122500.0,122470.0,0.78627422]
[1752483521915,0.01454085,122490.0,122480.0,0.12492]
[1752483522345,0.01454085,122490.0,122470.0,0.66951874]
[1752483522564,0.01454085,122490.0,122480.0,0.12492]
[1752483523169,0.01454085,122490.0,122480.0,0.29637649]
[1752483523379,0.01454085,122490.0,122480.0,0.17962095]
[1752483523583,0.01454085,122490.0,122480.0,0.33534095]
[1752483523786,0.01454085,122490.0,122480.0,0.70381105]
[1752483523993,0.01454085,122500.0,122480.0,0.57889105]
[1752483524230,0.02270358,122500.0,122490.0,0.12492]
[1752483524464,0.01454085,122500.0,122490.0,0.12492]
[1752483526036,0.01454085,122500.0,122480.0,0.58705544]
[1752483526234,0.01454085,122500.0,122490.0,0.12492]
[1752483526475,0.01554085,122500.0,122490.0,0.12492]
[1752483526897,0.01454085,122500.0,122480.0,0.58705544]
[1752483527114,0.01554085,122500.0,122480.0,0.57889125]
[1752483527322,0.01554085,122500.0,122490.0,0.12492]
[1752483527523,0.01554085,122500.0,122480.0,0.56256246]
[1752483527729,0.01554085,122500.0,122490.0,0.12492]
[1752483527911,0.01454085,122500.0,122490.0,0.12492]
[1752483529354,0.01554085,122500.0,122490.0,0.12488]
[1752483529968,0.01654085,122500.0,122490.0,0.12488]
[1752483531008,0.04794085,122500.0,122480.0,0.57072685]
[1752483531210,0.05610358,122500.0,122490.0,0.12488]
[1752483531341,0.04794085,122500.0,122490.0,0.12488]
[1752483531548,0.05610351,122500.0,122480.0,0.24332081]
[1752483531813,0.04794085,122500.0,122490.0,0.12488]
[1752483532561,0.04694085,122500.0,122490.0,0.12488]
[1752483533241,0.05510351,122500.0,122490.0,0.12488]
[1752483533453,0.04694085,122500.0,122490.0,0.12488]
[1752483533664,0.05510351,122500.0,122490.0,0.12488]
[1752483533813,0.05610351,122500.0,122490.0,0.12488]
[1752483534165,0.04794085,122500.0,122490.0,0.12488]
[1752483534573,0.05610351,122500.0,122490.0,0.12488]
[1752483534784,0.04794085,122500.0,122490.0,0.12488]
[1752483535117,0.05610351,122500.0,122490.0,0.12488]
[1752483535801,0.04794085,122500.0,122490.0,0.12488]
[1752483535999,0.05610358,122500.0,122490.0,0.12488]
[1752483536441,0.05610351,122500.0,122490.0,0.12488]
[1752483536648,0.0724291,122500.0,122490.0,0.12488]
[1752483536850,0.06426624,122500.0,122490.0,0.12488]
[1752483537049,0.07242903,122500.0,122490.0,0.12488]
[1752483538525,0.06426624,122500.0,122490.0,0.12488]
[1752483538663,0.05610351,122500.0,122490.0,0.12488]
[1752483539082,0.01654085,122500.0,122490.0,0.12488]
[1752483540408,0.02470358,122500.0,122490.0,0.12488]
[1752483541850,0.02470351,122500.0,122490.0,0.12488]
[1752483542467,0.01654085,122500.0,122490.0,0.12488]
[1752483543126,0.25627101,122500.0,122490.0,0.12488]
[1752483543356,0.26443374,122500.0,122490.0,0.12488]
[1752483544304,0.01654085,122500.0,122490.0,0.0323]
[1752483544494,0.01654085,122500.0,122490.0,0.15718]
[1752483544721,0.02470351,122500.0,122490.0,0.15718]
[1752483545227,0.31345932,122500.0,122490.0,0.12488]
[1752483545382,0.07372916,122500.0,122490.0,0.12488]
[1752483545589,0.32162231,122500.0,122490.0,0.12488]
[1752483545794,0.27259646,122500.0,122490.0,0.12488]
[1752483546201,0.26443367,122500.0,122490.0,0.12488]
[1752483546549,0.2725964,122500.0,122490.0,0.12488]
[1752483546747,0.28075926,122500.0,122490.0,0.12488]
[1752483546988,0.2725964,122500.0,122490.0,0.12488]
[1752483547482,0.28075926,122500.0,122490.0,0.12488]
[1752483547710,0.2725964,122500.0,122490.0,0.12488]
[1752483548515,0.02470351,122500.0,122490.0,0.12488]
[1752483548735,0.26443367,122500.0,122490.0,0.12488]
[1752483549152,0.2725964,122500.0,122490.0,0.12488]
[1752483549803,0.02470351,122500.0,122490.0,0.12488]
[1752483550027,0.27259653,122500.0,122490.0,0.12488]
[1752483550240,0.27259646,122500.0,122490.0,0.12488]
[1752483550906,0.26443367,122500.0,122490.0,0.12488]
[1752483551290,0.28075933,122500.0,122490.0,0.12488]
[1752483551528,0.28892212,122500.0,122490.0,0.12488]
[1752483551752,0.28075919,122500.0,122490.0,0.12488]
[1752483552010,0.28892212,122500.0,122490.0,0.12488]
[1752483552659,0.28892205,122500.0,122490.0,0.12488]
[1752483552988,0.28075919,122500.0,122490.0,0.12488]
[1752483554047,0.2725964,122500.0,122490.0,0.12488]